bitfinex/quotes_ETHUSD_20240902
["timestamp","ask_amount","ask_price","bid_price","bid_amount"]
[1725237569931,2.3774,2454.7,2454.0,2.03742]
[1725237570248,4.41439,2454.6,2453.8,2.03763]
[1725237570402,2.3774,2454.5,2453.8,2.03763]
[1725237570598,2.3774,2454.5,2453.9,2.03756]
[1725237571567,2.3774,2454.5,2454.0,2.03747]
[1725237573032,2.4411,2454.4,2453.7,3.0]
[1725237573232,2.7229839,2454.4,2453.7,2.03772]
[1725237573441,2.4411,2454.4,2454.0,2.03748]
[1725237573891,2.4411,2454.0,2453.5,2.03782]
[1725237574259,0.447852,2453.9,2453.5,2.03782]
[1725237574538,2.4411,2454.0,2453.4,3.0]
[1725237574740,2.4411,2454.0,2453.3,2.03804]
[1725237575633,2.03767,2453.8,2453.1,2.0382]
[1725237575817,4.47885,2453.7,2452.9,2.44659]
[1725237576331,4.47885,2453.7,2453.0,2.03831]
[1725237576535,4.47885,2453.7,2453.1,2.03822]
[1725237576536,2.4411,2453.7,2453.1,2.03822]
[1725237576908,2.4411,2453.7,2453.3,2.03806]
[1725237577311,2.4411,2453.7,2453.6,2.03782]
[1725237578011,2.4411,2453.7,2453.4,2.03794]
[1725237578631,2.4411,2453.7,2453.6,2.03782]
[1725237579048,2.4411,2453.7,2453.5,2.03787]
[1725237579310,2.2577,2454.3,2453.6,2.03782]
[1725237579796,2.2577,2454.3,2453.8,2.03763]
[1725237579973,2.687189,2454.3,2453.8,2.03763]
[1725237580297,2.687189,2454.3,2453.9,2.03756]
[1725237580506,2.687189,2454.3,2453.8,2.03763]
[1725237581008,2.687189,2454.3,2453.6,2.0378]
[1725237581395,4.724429,2454.3,2453.6,2.0378]
[1725237581706,2.687189,2454.3,2453.7,2.03773]
[1725237581858,2.687189,2454.3,2453.8,2.03763]
[1725237582059,4.724429,2454.3,2453.6,2.0378]
[1725237582394,2.7134889,2454.2,2453.4,5.03794]
[1725237582557,2.3077,2454.1,2453.4,5.03794]
[1725237582763,2.03758,2453.9,2453.3,3.0]
[1725237582967,2.3077,2453.9,2453.0,2.03829]
[1725237583300,2.03787,2453.6,2452.9,2.03837]
[1725237583864,2.4852,2453.5,2452.8,2.44667]
[1725237584061,2.4852,2453.3,2452.6,2.03863]
[1725237584580,4.52327,2453.3,2452.6,2.03863]
[1725237584788,2.4852,2453.3,2452.6,2.03863]
[1725237585604,2.4852,2453.3,2452.7,2.0385]
[1725237586309,2.4852,2453.3,2452.5,2.0387]
[1725237586310,4.52327,2453.3,2452.5,2.0387]
[1725237586663,4.77179,2453.3,2452.5,2.0387]
[1725237586795,2.73372,2453.3,2452.4,5.03881]
[1725237586967,2.73372,2453.3,2452.7,2.03856]
[1725237588483,2.03832,2453.0,2452.4,5.03881]
[1725237588721,2.2655,2452.9,2452.3,3.0]
[1725237588922,2.2655,2452.9,2452.2,2.03897]
[1725237589069,2.695882,2452.9,2452.2,2.03897]
[1725237589598,2.695882,2452.9,2452.3,2.03888]
[1725237589772,2.695882,2452.9,2452.3,5.03888]
[1725237589970,2.695882,2452.9,2452.3,3.0]
[1725237590221,2.695882,2452.9,2452.2,2.03897]
[1725237590399,0.4734202,2452.8,2452.2,2.03897]
[1725237590987,0.4734202,2452.8,2452.1,3.0]
[1725237590988,4.52747,2452.7,2452.1,3.0]
[1725237591318,4.52747,2452.7,2451.9,2.03922]
[1725237591319,2.4889,2452.5,2451.9,2.03922]
[1725237592715,2.4889,2452.5,2451.9,5.03922]
[1725237592872,2.4889,2452.5,2452.0,2.03912]
[1725237593070,2.4889,2452.5,2452.1,2.03905]
[1725237593369,2.4889,2452.5,2452.1,5.03905]
[1725237593570,2.4889,2452.5,2452.2,2.03897]
[1725237593773,2.3995,2453.3,2452.3,2.03885]
[1725237594014,2.3995,2453.3,2453.2,2.03815]
[1725237595223,2.3995,2454.1,2453.5,2.03788]
[1725237595389,2.3995,2454.1,2453.1,3.08152072]
[1725237595390,0.443682,2454.0,2453.1,3.08152072]
[1725237595588,2.3995,2454.1,2453.6,2.03777]
[1725237596604,2.3995,2454.1,2453.7,2.03773]
[1725237596924,2.3995,2454.1,2453.6,2.03777]
[1725237597123,2.3995,2454.1,2453.7,2.03772]
[1725237597625,2.3995,2454.1,2453.6,2.03777]
[1725237597796,2.63945,2454.1,2453.6,2.03777]
[1725237598325,2.63945,2454.1,2453.7,2.03773]
[1725237598485,2.63945,2454.1,2453.6,2.03777]
[1725237598685,2.3995,2454.1,2453.8,2.03758]
[1725237600002,2.3995,2454.1,2453.6,2.03777]
[1725237600743,2.3995,2454.1,2453.3,2.03805]
[1725237601027,2.3327,2453.8,2452.9,2.03838]
[1725237601194,2.3327,2453.8,2452.8,2.03846]
[1725237601539,2.3327,2453.4,2452.9,2.0384]
[1725237601759,2.3327,2453.4,2453.0,2.03831]
[1725237602046,2.3327,2453.4,2453.2,2.03808]
[1725237602741,2.3327,2453.4,2453.1,2.03821]
[1725237602913,2.56597,2453.4,2452.7,2.03853]
[1725237603511,2.56597,2453.4,2452.8,2.03847]
[1725237603838,2.3454,2453.3,2452.8,3.0]
[1725237604000,2.807064,2453.3,2452.8,3.0]
[1725237604344,2.3454,2453.1,2452.7,3.0]
[1725237604509,2.3454,2452.8,2452.1,2.03905]
[1725237604843,2.3454,2452.8,2452.2,2.03898]
[1725237605938,4.38391,2452.8,2452.2,2.03898]
[1725237606244,2.476675,2453.0,2451.8,4.82803012]
[1725237606245,2.03873,2452.5,2451.8,4.82803012]
[1725237606444,2.03873,2452.5,2451.8,6.45913012]
[1725237607435,2.03873,2452.5,2451.7,2.03939]
[1725237607436,2.3233,2452.4,2451.7,2.03939]
[1725237607645,4.36212,2452.4,2451.7,2.03939]
[1725237607800,5.002205,2452.4,2451.7,2.03939]
[1725237608212,2.963385,2452.4,2451.7,2.03939]
[1725237608409,2.963385,2452.4,2451.8,2.0393]
[1725237608800,2.963385,2452.4,2451.7,2.03939]
[1725237609242,2.963385,2452.4,2451.8,2.03931]
[1725237609448,2.963385,2452.4,2451.9,2.03923]
[1725237609746,2.963385,2452.4,2452.3,2.0389]
[1725237609747,2.3233,2452.4,2452.3,2.0389]
[1725237609947,2.4833,2453.1,2452.6,2.03858]
[1725237610182,2.73163,2453.1,2452.8,2.03846]
[1725237610387,2.4833,2453.1,2452.8,2.03846]
[1725237611161,2.4833,2453.1,2453.0,2.03832]
[1725237611369,2.4833,2453.1,2453.0,3.0]
[1725237611556,2.4833,2453.1,2452.7,3.0]
[1725237611872,2.4833,2453.1,2452.4,4.41983012]
[1725237611873,2.73163,2453.1,2452.4,4.41983012]
[1725237612079,2.2913,2452.8,2452.2,5.03898]
[1725237612291,2.2913,2452.8,2452.3,2.03889]
[1725237613984,4.41983012,2452.7,2451.6,0.4082]
[1725237614182,2.3327,2451.8,2450.5,2.04033]
[1725237614421,2.03965,2451.4,2450.7,0.12448891]
[1725237614634,2.3379,2451.0,2450.2,2.04062]
[1725237614783,2.3379,2450.6,2449.7,2.04098]
[1725237614984,3.37825979,2450.6,2449.5,2.04119]
[1725237615204,2.04049,2450.4,2449.6,2.04114]
[1725237615679,0.54184898,2450.5,2449.0,4.41983012]
[1725237615680,3.9706577,2450.3,2449.0,4.41983012]
[1725237616003,2.4993,2450.3,2449.7,2.04103]
[1725237616195,2.4993,2450.3,2449.9,2.04087]
[1725237617309,2.4993,2450.3,2449.8,2.04095]
[1725237617922,2.4993,2450.3,2449.3,4.82803012]
[1725237617923,2.04071,2450.2,2449.3,2.04138]
[1725237618233,4.78982,2450.3,2449.4,2.04131]
[1725237618439,4.78982,2450.3,2449.4,2.12295991]
[1725237618789,4.78982,2450.3,2449.4,0.08164991]
[1725237618790,2.4993,2450.3,2449.4,0.08164991]
[1725237619040,2.4993,2450.3,2449.9,2.04086]
[1725237619327,2.4993,2450.3,2449.7,2.04105]
[1725237619554,2.29058,2450.2,2449.3,2.04136]
[1725237619689,0.24993,2450.2,2449.5,2.04116]
[1725237619891,2.29058,2450.2,2449.5,2.04116]
[1725237620136,2.29058,2450.2,2449.4,3.0]
[1725237620435,2.29058,2450.2,2449.1,2.04153]
[1725237620436,2.04093,2449.9,2449.1,2.04153]
[1725237620648,2.04093,2449.9,2449.2,2.04146]
[1725237620800,2.04093,2449.9,2449.0,2.04164]
[1725237621006,2.2523,2449.8,2448.9,2.0417]
[1725237621451,4.29328,2449.8,2449.1,2.04155]
[1725237621757,2.2523,2449.8,2449.1,2.04155]
[1725237621904,2.2523,2449.8,2449.4,2.04131]
[1725237622099,2.2523,2449.8,2449.2,2.04146]
[1725237622100,2.2523,2449.8,2449.5,2.04116]
[1725237622719,4.66618,2450.2,2449.5,2.04116]
[1725237623042,4.41625,2450.2,2449.5,2.04116]
[1725237625149,2.04073,2450.1,2449.5,2.04116]
[1725237625865,2.04073,2450.1,2449.4,3.0]
[1725237626039,2.04073,2450.1,2449.3,2.04138]
[1725237626237,2.686419,2450.1,2449.3,2.04138]
[1725237626582,2.04093,2449.9,2449.2,3.0]
[1725237626870,2.04093,2449.9,2449.3,2.04139]
[1725237627074,2.686419,2450.1,2449.3,2.04139]
[1725237627249,2.3756,2450.2,2449.3,2.04139]
[1725237627579,2.94561868,2450.2,2449.1,2.44974]
[1725237627767,2.04096,2449.9,2449.1,2.44974]
[1725237628113,2.449135,2449.9,2449.1,2.44974]
[1725237628404,2.3756,2450.2,2449.4,2.04131]
[1725237628535,2.3756,2450.2,2449.5,2.04122]
[1725237628936,2.3756,2450.2,2449.2,3.08165248]
[1725237628937,2.3756,2450.2,2449.7,2.04105]
[1725237629447,2.61316,2450.2,2449.7,2.04105]
[1725237629740,4.65381,2450.2,2449.6,3.0]
[1725237629980,2.61316,2450.2,2449.6,2.04113]
[1725237630151,2.302076,2450.1,2449.6,3.0]
[1725237630349,0.261316,2450.1,2449.5,2.04122]
[1725237630687,2.3756,2450.2,2449.9,2.04082]
[1725237630835,2.3529,2450.7,2450.3,2.04049]
[1725237631036,2.03886,2452.4,2450.5,2.04039]
[1725237631037,2.4846,2451.5,2450.5,2.04039]
[1725237631534,2.4846,2451.5,2450.6,2.04028]
[1725237631535,2.03971,2451.4,2450.6,2.04028]
[1725237631735,2.03971,2451.4,2450.7,2.04021]
[1725237631977,0.452431,2451.3,2450.7,2.04021]
[1725237632179,2.492161,2451.3,2450.7,2.04021]
[1725237632484,2.0399,2451.1,2450.3,5.04053]
[1725237632779,2.492161,2451.3,2450.7,2.04018]
[1725237632780,0.2492161,2451.2,2450.7,2.04018]
[1725237632936,0.452431,2451.3,2450.3,0.08161167]
[1725237633142,4.52417,2451.5,2450.7,2.04019]
[1725237633339,2.4846,2451.5,2451.1,2.03983]
[1725237633664,2.4846,2451.5,2451.0,2.03996]
[1725237633872,2.73306,2451.5,2451.0,2.03996]
[1725237634238,2.73306,2451.5,2450.6,0.08159744]
[1725237634239,2.4846,2451.5,2450.6,2.12186744]
[1725237634582,19.83209454,2452.0,2450.6,2.12186744]
[1725237634583,2.3688,2452.0,2451.5,2.03956]
[1725237635287,2.3688,2452.0,2450.9,0.08158463]
[1725237635288,2.03952,2451.6,2450.9,2.03998]
[1725237635454,2.3688,2451.5,2450.9,2.03998]
[1725237636019,2.3688,2451.5,2450.8,3.0]
[1725237636302,2.3688,2451.5,2450.8,2.04014]
[1725237636510,2.480542,2451.4,2450.8,3.0]
[1725237636668,2.480542,2451.4,2450.6,5.04031]
[1725237636874,2.480542,2451.4,2450.6,2.04031]
[1725237637108,0.4849342,2451.3,2450.5,3.0]
[1725237637270,2.03988,2451.2,2450.5,2.04037]
[1725237637474,2.03988,2451.2,2450.5,5.04037]
[1725237637813,2.3688,2451.1,2450.3,2.04056]
[1725237638268,2.04004,2451.0,2450.3,2.04056]
[1725237639171,2.04007,2450.9,2450.1,2.04072]
[1725237639514,2.04015,2450.8,2450.1,2.04072]
[1725237639819,2.3984,2450.6,2450.1,2.04072]
[1725237640110,4.43875,2450.6,2449.9,2.04085]
[1725237640271,4.882605,2450.6,2449.9,2.04085]
[1725237640472,2.0404,2450.5,2449.8,2.44915]
[1725237640828,2.0404,2450.5,2449.6,6.46095012]
[1725237640829,2.04057,2450.3,2449.6,2.04112]
[1725237640973,2.04057,2450.3,2449.4,2.04128]
[1725237640974,2.04073,2450.1,2449.4,2.04128]
[1725237641167,2.04088,2450.0,2449.2,2.04144]
[1725237641408,2.0409,2449.9,2449.2,2.04144]
[1725237641611,2.688918,2449.9,2449.2,2.04144]
[1725237642403,2.3984,2450.1,2449.6,2.04108]
[1725237643985,2.3984,2450.1,2449.5,3.0]
[1725237644301,2.04093,2449.9,2449.3,3.0]
[1725237644503,2.04099,2449.8,2449.0,2.04162]
[1725237644725,2.449252,2449.7,2449.0,2.04162]
[1725237645024,2.04106,2449.7,2449.0,2.04162]
[1725237645181,2.04093,2449.9,2449.1,2.04156]
[1725237645386,2.04093,2449.9,2449.2,2.04147]
[1725237645688,2.04093,2449.9,2449.1,2.04156]
[1725237646426,2.04098,2449.8,2449.1,2.04156]
[1725237646726,2.4536,2449.6,2449.1,2.04156]
[1725237647272,2.4536,2449.6,2449.2,2.04147]
[1725237647590,2.4536,2449.6,2449.2,3.0]
[1725237647787,2.4536,2449.6,2449.1,2.04156]
[1725237649126,2.47,2449.9,2449.4,2.04125]
[1725237649618,2.47,2449.9,2449.4,2.0413]
[1725237650688,2.47,2449.9,2449.3,2.04132]
[1725237651024,2.945062,2449.9,2449.4,2.0413]
[1725237651441,2.945062,2449.9,2449.3,2.04132]
[1725237651600,2.04098,2449.8,2449.2,3.0]
[1725237651807,2.04107,2449.7,2449.1,2.04156]
[1725237652023,2.5396742,2449.7,2449.0,3.0]
[1725237652322,0.4986042,2449.7,2448.9,2.04166]
[1725237652524,2.04098,2449.8,2449.1,2.0415]
[1725237653114,4.08204,2449.8,2449.1,2.0415]
[1725237653426,2.04108,2449.7,2449.1,2.0415]
[1725237653925,2.04115,2449.6,2449.0,3.0]
[1725237654089,2.04125,2449.5,2448.9,2.04172]
[1725237654479,2.04132,2449.4,2448.8,3.0]
[1725237654634,2.04132,2449.4,2448.5,2.45023]
[1725237654635,4.41432,2449.4,2448.5,2.04203]
[1725237654793,4.41432,2449.4,2448.6,2.04197]
[1725237654988,2.373,2449.4,2449.1,2.04156]
[1725237655197,2.373,2449.4,2448.9,2.0417]
[1725237655389,2.373,2449.4,2448.7,2.04186]
[1725237655589,0.2373,2449.3,2448.6,2.04192]
[1725237655788,2.04148,2449.2,2448.6,2.04192]
[1725237656034,2.27877,2449.3,2448.6,2.04192]
[1725237656196,0.465177,2449.2,2448.6,2.04192]
[1725237656386,0.465177,2449.2,2448.8,2.04177]
[1725237657002,0.465177,2449.2,2448.6,2.04192]
[1725237658637,0.465177,2449.2,2448.7,2.04188]
[1725237658998,2.373,2449.4,2448.6,0.08167359]
[1725237659237,2.373,2449.4,2448.9,2.04172]
[1725237659652,2.373,2449.4,2449.1,2.04154]
[1725237659935,2.373,2449.4,2448.9,2.04172]
[1725237660153,2.373,2449.4,2449.0,2.04164]
[1725237660302,2.373,2449.4,2449.1,2.04154]
[1725237660499,2.373,2449.4,2449.0,2.04164]
[1725237660875,2.373,2449.4,2448.8,2.04179]
[1725237660876,2.6103,2449.4,2448.8,2.04179]
[1725237661152,4.65162,2449.4,2448.5,5.042]
[1725237661350,2.6103,2449.4,2448.9,2.0417]
[1725237661898,0.26103,2449.3,2448.9,2.0417]
[1725237662328,0.26103,2449.3,2448.8,3.0]
[1725237662507,0.26103,2449.3,2448.7,2.04184]
[1725237662710,0.26103,2449.3,2448.8,2.04181]
[1725237663516,2.30246,2449.3,2448.6,3.0]
[1725237663719,0.491276,2449.2,2448.6,2.04198]
[1725237664050,0.491276,2449.2,2448.7,2.04189]
[1725237664230,0.491276,2449.2,2448.7,5.04189]
[1725237664420,0.491276,2449.2,2448.7,3.0]
[1725237664736,0.2793736,2449.1,2448.5,2.04199]
[1725237664904,0.2793736,2449.1,2448.5,4.08398]
[1725237665099,0.2793736,2449.1,2448.6,3.0]
[1725237665309,2.04182,2448.8,2448.1,2.04237]
[1725237665504,2.4538,2448.6,2447.9,2.04255]
[1725237665725,4.49578,2448.6,2447.9,2.04255]
[1725237666128,2.4538,2448.6,2447.9,2.04255]
[1725237666363,2.4538,2448.6,2448.1,2.04238]
[1725237666558,21.87416454,2448.5,2447.8,2.04263]
[1725237666768,22.32373554,2448.5,2447.8,2.04263]
[1725237666920,20.28166554,2448.5,2447.9,2.04256]
[1725237667371,2.27354655,2448.4,2447.9,2.04256]
[1725237668326,2.27354655,2448.4,2447.7,2.0427]
[1725237668558,2.4538,2448.3,2447.7,2.0427]
[1725237668758,19.83209454,2448.2,2447.7,2.0427]
[1725237668961,19.83209454,2448.1,2447.5,2.04286]
[1725237669144,19.83209454,2448.1,2447.3,2.04303]
[1725237669145,4.41298,2448.0,2447.3,2.04303]
[1725237669520,2.04298,2447.5,2446.7,2.04353]
[1725237669675,2.04298,2447.5,2446.9,2.04339]
[1725237670230,2.3705,2447.4,2446.3,2.04388]
[1725237670462,2.3705,2447.2,2446.3,2.04388]
[1725237670666,2.3705,2447.2,2446.6,2.04364]
[1725237671233,2.3705,2447.2,2446.5,2.04371]
[1725237671472,2.811857,2447.2,2446.5,2.04371]
[1725237671932,2.811857,2447.2,2446.6,2.04365]
[1725237672735,2.811857,2447.2,2446.5,5.04372]
[1725237672934,0.2811857,2447.1,2446.6,2.04364]
[1725237673800,0.2811857,2447.1,2446.5,5.04372]
[1725237674011,2.3705,2447.2,2446.8,2.04347]
[1725237675423,2.3705,2447.2,2447.0,2.04329]
[1725237675615,2.3705,2447.2,2446.9,2.04339]
[1725237676572,19.83209454,2447.4,2446.8,2.04342]
[1725237676809,19.83209454,2447.4,2447.1,2.04322]
[1725237677109,2.94831945,2447.3,2447.1,2.04322]
[1725237678713,2.94831945,2447.3,2446.9,2.04339]
[1725237678911,2.94831945,2447.3,2446.7,2.04353]
[1725237678912,2.94831945,2447.3,2447.0,2.04331]
[1725237680012,2.94831945,2447.3,2446.8,2.04344]
[1725237680218,2.2780414,2447.2,2446.7,2.04353]
[1725237680786,22.11013594,2447.2,2446.9,2.04338]
[1725237680993,19.83209454,2447.2,2446.8,2.04344]
[1725237682030,9.6511,2447.5,2447.0,4.08661]
[1725237682031,19.83209454,2447.1,2447.0,4.08661]
[1725237682236,19.83209454,2447.1,2447.0,2.0433]
[1725237683589,19.83209454,2447.1,2446.9,5.04338]
[1725237683796,19.83209454,2447.1,2447.0,2.04331]
[1725237684801,19.83209454,2447.1,2446.9,2.04338]
[1725237685426,19.83209454,2447.1,2446.7,2.04355]
[1725237685427,2.3536,2447.0,2446.7,2.04355]
[1725237685612,22.18569454,2447.0,2446.7,2.04355]
[1725237685836,19.83209454,2446.9,2446.5,2.04371]
[1725237686036,2.21856945,2446.8,2446.2,2.04398]
[1725237686243,2.3536,2446.7,2446.0,2.04414]
[1725237686740,4.39717,2446.7,2445.9,2.04421]
[1725237687051,4.39717,2446.7,2445.5,2.4534]
[1725237687052,0.439717,2446.6,2446.0,2.04415]
[1725237687409,2.483367,2446.6,2446.0,2.04415]
[1725237687867,0.439717,2446.6,2446.0,2.04415]
[1725237688043,0.4836887,2446.5,2446.0,2.04415]
[1725237688445,2.4165,2446.4,2445.6,2.04445]
[1725237688606,2.4165,2446.4,2445.2,0.0817785]
[1725237688926,2.4165,2446.4,2446.0,2.04414]
[1725237689257,2.65815,2446.4,2446.0,2.04414]
[1725237689554,2.4165,2446.4,2446.0,2.04414]
[1725237689922,2.4165,2446.4,2446.1,2.04406]
[1725237690120,2.4165,2446.4,2446.2,2.04395]
[1725237690357,2.04317,2447.2,2446.2,2.04395]
[1725237690358,2.4943,2447.1,2446.2,2.04395]
[1725237690525,0.453747,2447.0,2446.4,2.04377]
[1725237691262,2.4943,2447.1,2446.9,2.0434]
[1725237691809,2.4943,2447.1,2446.5,2.0437]
[1725237692013,2.4943,2447.1,2446.4,5.04381]
[1725237692234,0.29988187,2447.0,2446.5,2.04372]
[1725237692436,0.29988187,2447.0,2446.6,2.04362]
[1725237692678,0.29988187,2447.0,2446.5,2.04372]
[1725237692973,0.29988187,2447.0,2446.4,3.0]
[1725237692974,2.4943,2447.1,2446.7,2.04356]
[1725237693182,2.4943,2447.1,2446.8,2.04347]
[1725237693384,2.286,2447.4,2447.0,2.04324]
[1725237693683,19.83209454,2447.3,2447.0,2.04324]
[1725237693877,19.83209454,2447.3,2446.6,2.04358]
[1725237694250,19.83209454,2447.3,2446.7,2.0435]
[1725237694636,19.83209454,2447.3,2446.6,2.04358]
[1725237694851,2.286,2447.1,2446.6,2.04358]
[1725237695185,2.286,2446.9,2446.1,2.04406]
[1725237695360,4.32942,2446.9,2446.1,2.04406]
[1725237695567,2.04349,2446.8,2446.1,2.04406]
[1725237695912,4.32942,2446.9,2446.2,2.04396]
[1725237696051,0.637291,2446.7,2446.2,2.04396]
[1725237696399,0.637291,2446.7,2446.0,2.04412]
[1725237696400,2.286,2446.6,2446.0,2.04407]
[1725237696551,0.2923291,2446.5,2446.0,2.04407]
[1725237696858,0.2923291,2446.5,2445.8,2.0443]
[1725237696859,2.284,2446.4,2445.8,2.0443]
[1725237697066,0.53368535,2446.3,2445.4,2.04463]
[1725237697297,0.53368535,2446.3,2445.2,2.04479]
[1725237697298,4.51683,2446.0,2445.2,2.04479]
[1725237697602,4.51685,2445.9,2445.0,2.04497]
[1725237697777,2.04438,2445.8,2445.0,2.04497]
[1725237697977,0.70949154,2445.7,2445.1,2.0449]
[1725237698295,0.70949154,2445.7,2444.6,4.41983012]
[1725237698296,2.75390154,2445.7,2444.9,2.04505]
[1725237698502,2.75390154,2445.7,2444.7,2.04524]
[1725237698503,2.4726,2445.6,2444.7,2.04524]
[1725237698656,4.51708,2445.6,2444.8,2.04515]
[1725237698854,0.24726,2445.5,2444.8,2.04515]
[1725237699212,2.29185,2445.5,2444.8,2.04513]
[1725237699348,0.24726,2445.5,2444.9,2.04506]
[1725237700793,0.24726,2445.5,2444.7,3.0]
[1725237701024,0.24726,2445.5,2444.6,5.04531]
[1725237701297,0.24726,2445.5,2444.6,5.12711406]
[1725237701603,0.24726,2445.5,2444.6,5.04531]
[1725237701984,4.5171,2445.6,2444.6,5.04531]
[1725237701985,2.4726,2445.6,2445.2,2.04481]
[1725237702154,2.4775,2446.3,2445.4,2.0446]
[1725237702492,2.4775,2446.3,2445.7,2.04432]
[1725237702906,2.4775,2446.3,2445.6,2.04448]
[1725237703056,2.4775,2446.3,2445.9,2.04419]
[1725237703452,2.4775,2446.3,2445.8,2.0443]
[1725237703654,2.4775,2446.3,2445.9,2.04422]
[1725237703853,2.72525,2446.3,2445.9,2.04422]
[1725237705456,2.72525,2446.3,2446.0,2.04414]
[1725237705805,2.4775,2446.3,2445.6,2.04447]
[1725237705960,4.52141,2446.3,2445.6,2.04447]
[1725237706297,0.452141,2446.2,2445.5,3.0]
[1725237706597,0.452141,2446.2,2445.8,2.04427]
[1725237706894,2.04415,2446.0,2445.2,2.04478]
[1725237707059,2.3406,2445.9,2445.3,2.04473]
[1725237707954,4.38486,2445.9,2444.9,2.04499]
[1725237708156,2.482855,2445.8,2445.1,2.04484]
[1725237708391,2.3867,2445.6,2444.7,2.0452]
[1725237708597,2.04466,2445.4,2444.7,2.0452]
[1725237708961,2.04476,2445.3,2444.5,2.04538]
[1725237709155,2.04476,2445.3,2444.0,6.46558012]
[1725237709156,2.04476,2445.3,2444.6,2.04531]
[1725237709355,0.635176,2445.2,2444.6,2.04531]
[1725237709589,2.04476,2445.3,2444.6,2.04531]
[1725237710566,2.3867,2445.6,2444.7,0.08180784]
[1725237710811,2.3867,2445.6,2444.9,2.04505]
[1725237710812,2.65019855,2445.6,2444.9,2.04505]
[1725237711183,2.65019855,2445.6,2445.0,2.04498]
[1725237711377,0.4942914,2445.5,2444.8,2.04515]
[1725237711573,0.4942914,2445.5,2444.9,2.04505]
[1725237712410,2.65019855,2445.6,2445.2,2.04481]
[1725237712608,2.65019855,2445.6,2445.0,2.04497]
[1725237712781,4.69469855,2445.6,2444.9,2.04503]
[1725237712978,0.26501985,2445.5,2444.8,2.04512]
[1725237713194,0.26501985,2445.5,2444.9,2.04506]
[1725237713711,0.26501985,2445.5,2444.8,2.04512]
[1725237713876,0.26501985,2445.5,2445.0,2.04498]
[1725237714260,0.26501985,2445.5,2444.8,2.04512]
[1725237714577,2.04466,2445.4,2444.7,3.0]
[1725237714831,2.27569799,2445.3,2444.6,2.04528]
[1725237715130,0.23096799,2445.3,2444.7,2.04522]
[1725237716054,4.50883,2445.2,2444.5,5.04538]
[1725237716364,0.4739798,2445.1,2444.6,2.0453]
[1725237716666,2.464,2445.2,2444.6,2.0453]
[1725237716952,2.464,2445.2,2444.8,2.04509]
[1725237718957,2.04452,2445.6,2445.4,2.04458]
[1725237718958,2.2632,2445.6,2445.4,2.04458]
[1725237719273,2.2632,2445.6,2445.1,2.04488]
[1725237719458,0.22632,2445.5,2445.1,2.04488]
[1725237719979,2.2632,2445.6,2445.1,2.04488]
[1725237721152,2.2632,2445.6,2445.0,3.0]
[1725237721353,2.2632,2445.4,2444.5,2.04538]
[1725237721655,0.430778,2445.3,2444.7,2.04523]
[1725237722379,0.430778,2445.3,2444.8,2.04514]
[1725237722680,0.430778,2445.3,2444.7,2.04523]
[1725237723045,0.430778,2445.3,2444.8,2.04515]
[1725237723248,0.2693978,2445.2,2444.7,2.04523]
[1725237724079,0.2693978,2445.2,2444.8,2.04515]
[1725237725358,0.2693978,2445.2,2444.8,2.04514]
[1725237725558,19.83209454,2445.1,2444.8,2.04514]
[1725237726064,19.83209454,2445.1,2444.8,2.04515]
[1725237726374,21.88532157,2445.1,2444.7,2.04523]
[1725237726898,21.88532157,2445.1,2444.8,2.04515]
[1725237728158,21.88532157,2445.1,2444.9,2.04506]
[1725237729849,21.88532157,2445.1,2445.0,4.08996]
[1725237729850,19.83209454,2445.1,2445.0,4.08996]
[1725237730314,12.35,2445.7,2445.1,4.0898]
[1725237730315,19.83209454,2445.2,2445.1,4.0898]
[1725237730481,19.83209454,2445.2,2445.1,6.1347]
[1725237730686,19.83209454,2445.2,2445.1,9.1347]
[1725237731612,19.83209454,2445.2,2445.1,7.0898]
[1725237732329,19.83209454,2445.2,2445.1,5.0449]
[1725237732485,19.83209454,2445.2,2445.0,2.04494]
[1725237732687,19.83209454,2445.2,2444.8,2.04511]
[1725237732688,19.83209454,2445.1,2444.8,2.04511]
[1725237733196,19.83209454,2445.1,2444.6,2.04528]
[1725237733197,19.83209454,2445.1,2444.6,2.04526]
[1725237733832,19.83209454,2445.0,2444.4,2.04546]
[1725237733988,2.04475,2445.3,2444.4,2.04546]
[1725237733989,22.30429454,2444.9,2444.4,2.04546]
[1725237734186,19.83209454,2444.8,2443.9,0.4082]
[1725237734382,22.06252399,2444.8,2444.0,2.04574]
[1725237734615,3.0,2445.4,2443.9,0.49002581]
[1725237734616,22.30429454,2446.2,2444.8,2.3302]
[1725237734817,2.4722,2446.2,2445.7,4.41983012]
[1725237735015,2.4722,2446.2,2444.9,2.04499]
[1725237735016,2.4511,2446.2,2445.4,4.41983012]
[1725237735223,2.4511,2446.2,2445.8,2.04427]
[1725237735525,0.24511,2446.1,2445.4,6.46446012]
[1725237735726,0.24511,2446.1,2444.7,4.43716]
[1725237735727,2.4525,2445.9,2445.1,4.41983012]
[1725237735878,4.49682,2445.9,2445.1,6.46470012]
[1725237736081,2.04433,2445.8,2445.1,6.46472012]
[1725237736281,0.449683,2445.7,2445.1,6.46472012]
[1725237737905,2.398,2445.5,2444.9,5.04506]
[1725237738304,2.398,2445.5,2444.4,2.8717]
[1725237738305,2.04474,2445.3,2444.6,2.04531]
[1725237738688,4.44258,2445.5,2444.6,2.04531]
[1725237739028,2.53507763,2445.4,2444.6,2.04531]
[1725237739230,2.53507763,2445.4,2444.5,4.41983012]
[1725237739231,2.398,2445.3,2444.5,4.41983012]
[1725237740083,2.4412,2444.9,2444.2,6.46547012]